fUST/lending_fUST_20250307
["ID","MTS","AMOUNT","RATE_DAILY","PERIOD"]
[355600867,1741357861962,-508.75,0.00040821,30]
[355600868,1741357861971,-773.88,0.00040821,30]
[355600869,1741357861980,-1190.57,0.00040821,30]
[355600870,1741357861990,-773.31,0.00040821,30]
[355600871,1741357861999,-535.22,0.00040821,30]
[355600872,1741357862008,-1000.0,0.00040821,7]
[355600873,1741357862018,-674.96,0.00040821,30]
[355600874,1741357862027,-500.0,0.00040821,30]
[355600875,1741357862037,-500.0,0.00040821,30]
[355600876,1741357862047,-500.0,0.00040821,30]
[355600877,1741357862056,-500.0,0.00040821,30]
[355600878,1741357862068,-1092.95,0.00040821,30]
[355600879,1741357862077,-500.0,0.00040821,30]
[355600880,1741357862087,-8089.12,0.00040821,30]
[355600881,1741357862096,-500.0,0.00040821,30]
[355600882,1741357862105,-1368.46,0.00040821,30]
[355600883,1741357862115,-500.0,0.00040821,30]
[355600884,1741357862124,-1646.73,0.00040821,30]
[355600885,1741357862138,-1042.05,0.00040821,30]
[355600886,1741357862148,-896.61,0.00040821,30]
[355600887,1741357862158,-1423.74,0.00040821,30]
[355600888,1741357862168,-545.4,0.00040821,30]
[355600889,1741357862178,-1667.47,0.00040821,30]
[355600890,1741357862189,-855.28,0.00040821,30]
[355600891,1741357862199,-1876.6,0.00040821,30]
[355600892,1741357862209,-500.0,0.00040821,30]
[355600893,1741357862219,-500.0,0.00040821,30]
[355600894,1741357862229,-685.68,0.00040821,30]
[355600895,1741357862240,-1348.74,0.00040821,30]
[355600896,1741357862250,-1572.44,0.00040821,30]
[355600897,1741357862259,-500.0,0.00040821,30]
[355600898,1741357862268,-500.0,0.00040821,30]
[355600899,1741357862278,-500.0,0.00040821,30]
[355600900,1741357862288,-500.0,0.00040821,30]
[355600901,1741357862298,-132607.36,0.00040821,7]
[355600902,1741357862307,-850.8,0.00040821,30]
[355600903,1741357862319,-500.0,0.00040821,30]
[355600904,1741357862330,-904.12,0.00040821,30]
[355600905,1741357862339,-1621.58,0.00040821,30]
[355600906,1741357862348,-1312.15,0.00040821,30]
[355600907,1741357862358,-645.09245404,0.00040821,30]
[355600908,1741357862368,-2610.77,0.00040821,30]
[355600909,1741357862378,-716.55,0.00040821,30]
[355600910,1741357862388,-500.0,0.00040821,30]
[355600911,1741357862398,-500.0,0.00040821,30]
[355600912,1741357862408,-1292.51,0.00040821,30]
[355600913,1741357862419,-612.3,0.00040821,30]
[355600914,1741357862429,-500.0,0.00040821,30]
[355600915,1741357862439,-1382.9,0.00040821,30]
[355600916,1741357862448,-2004.36,0.00040821,15]
[355600917,1741357862458,-577.0,0.00040821,30]
[355600918,1741357862468,-6428.78,0.00040821,30]
[355600919,1741357862478,-722.58,0.00040821,30]
[355600920,1741357862488,-1032.7,0.00040821,30]
[355600921,1741357862498,-8893.18,0.00040821,30]
[355600922,1741357862508,-795.02,0.00040821,30]
[355600923,1741357862518,-665.5,0.00040821,30]
[355600924,1741357862527,-500.0,0.00040821,30]
[355600925,1741357862537,-1493.56,0.00040821,30]
[355600926,1741357862547,-4367.99,0.00040821,30]
[355600927,1741357862557,-749.31,0.00040821,30]
[355600928,1741357862570,-2707.82,0.00040821,30]
[355600929,1741357862580,-500.0,0.00040821,30]
[355600930,1741357862590,-643.96,0.00040821,30]
[355600931,1741357862600,-500.0,0.00040821,30]
[355600932,1741357862610,-500.0,0.00040821,30]
[355600933,1741357862619,-2470.25,0.00040821,30]
[355600934,1741357862628,-591.29,0.00040821,30]
[355600935,1741357862638,-5064.26,0.00040821,30]
[355600936,1741357862647,-500.0,0.00040821,30]
[355600937,1741357862657,-2702.56,0.00040821,30]
[355600938,1741357862667,-796.49,0.00040821,30]
[355600939,1741357862677,-748.95,0.00040821,30]
[355600940,1741357862686,-968.16,0.00040821,30]
[355600941,1741357862696,-1575.88,0.00040821,30]
[355600942,1741357862706,-1434.71,0.00040821,30]
[355600943,1741357862716,-1248.42,0.00040821,30]
[355600944,1741357862725,-1206.59,0.00040821,30]
[355600945,1741357862735,-713.9,0.00040821,30]
[355600946,1741357862745,-674.94,0.00040821,30]
[355600947,1741357862754,-1065.08,0.00040821,7]
[355600948,1741357862764,-673.48,0.00040821,30]
[355600949,1741357862774,-1075.1,0.00040821,30]
[355600950,1741357862783,-500.0,0.00040821,30]
[355600951,1741357862793,-765.28,0.00040821,30]
[355600952,1741357862804,-500.0,0.00040821,30]
[355600953,1741357862814,-500.0,0.00040821,30]
[355600954,1741357862834,-773.72,0.00040821,30]
[355600955,1741357862844,-3559.04,0.00040821,30]
[355600956,1741357862855,-1301.44,0.00040821,30]
[355600957,1741357862866,-3825.24,0.00040821,30]
[355600958,1741357862877,-2253.86,0.00040821,30]
[355600959,1741357862888,-500.0,0.00040821,30]
[355600960,1741357862899,-4575.66,0.00040821,30]
[355600961,1741357862909,-500.0,0.00040821,30]
[355600962,1741357862920,-639.23,0.00040821,30]
[355600963,1741357862930,-4376.22,0.00040821,30]
[355600964,1741357862940,-1801.35,0.00040821,30]
[355600965,1741357862951,-500.0,0.00040821,30]
[355600966,1741357862960,-500.0,0.00040821,30]
[355600967,1741357862971,-500.0,0.00040821,30]
[355600968,1741357862981,-546.0,0.00040821,30]
[355600969,1741357862991,-600.0,0.00040846,30]
[355600970,1741357863001,-421.94365716,0.00040944,40]
[355600971,1741357863011,-160.0,0.00040988,5]
[355600972,1741357863021,-24183.30484018,0.00041,2]
[355600973,1741357863031,-301.93,0.00041,30]
[355600974,1741357863041,-514.25124596,0.00041085,30]
[355600975,1741357863051,-1166.4,0.00041094,2]
[355600976,1741357863061,-30949.52626045,0.00041095,2]
[355600977,1741357863079,-806.97,0.00041095,120]
[355600978,1741357863089,-500.0,0.00041095,120]
[355600979,1741357863100,-500.0,0.00041095,120]
[355600980,1741357863111,-500.0,0.00041095,120]
[355600981,1741357863121,-500.0,0.00041095,120]
[355600982,1741357863133,-1000.0,0.00041095,20]
[355600983,1741357863148,-398.90211075,0.00041095,20]
[355600984,1741357863159,-1000.0,0.00041095,30]
[355600985,1741357863169,-1000.0,0.00041095,30]
[355600986,1741357863180,-1000.0,0.00041095,30]
[355600987,1741357863192,-1000.0,0.00041095,30]
[355600988,1741357863203,-1000.0,0.00041095,30]
[355600989,1741357863215,-1000.0,0.00041095,30]
[355600990,1741357863226,-1000.0,0.00041095,30]
[355600991,1741357863236,-1040.71170102,0.00041095,30]
[355600992,1741357863246,-500.0,0.00041095,120]
[355600993,1741357863256,-500.0,0.00041095,120]
[355600994,1741357863266,-500.0,0.00041095,120]
[355600995,1741357863276,-500.0,0.00041095,120]
[355600996,1741357863286,-500.0,0.00041095,120]
[355600997,1741357863297,-528.37027001,0.00041095,120]
[355600998,1741357863306,-500.0,0.00041095,3]
[355600999,1741357863316,-500.0,0.00041095,120]
[355601000,1741357863331,-500.0,0.00041095,120]
[355601001,1741357863342,-500.0,0.00041095,120]
[355601002,1741357863351,-705.57,0.00041095,120]
[355601003,1741357863362,-500.0,0.00041095,120]
[355601004,1741357863511,-2051.0,0.00041095,120]
[355601005,1741357863521,-500.0,0.00041095,120]
[355601006,1741357863532,-706.25,0.00041095,120]
[355601007,1741357863542,-500.0,0.00041095,120]
[355601008,1741357863552,-500.0,0.00041095,120]
[355601009,1741357863562,-580.88,0.00041095,120]
[355601010,1741357863578,-558.69,0.00041095,120]
[355601011,1741357863588,-500.0,0.00041095,120]
[355601012,1741357863599,-500.0,0.00041095,120]
[355601013,1741357863609,-500.0,0.00041095,120]
[355601014,1741357863619,-323.35299517,0.00041095,120]
[355601015,1741357863629,-512.17,0.00041095,120]
[355601016,1741357863639,-500.0,0.00041095,120]
[355601017,1741357863649,-500.0,0.00041095,120]
[355601018,1741357863659,-500.0,0.00041095,120]
[355601019,1741357863669,-500.0,0.00041095,8]
[355601020,1741357863679,-503.77507705,0.00041095,8]
[355601021,1741357863689,-500.0,0.00041095,120]
[355601022,1741357863699,-500.0,0.00041095,120]
[355601023,1741357863709,-602.65,0.00041095,120]
[355601024,1741357863719,-1494.97,0.00041095,7]
[355601025,1741357863729,-712.98,0.00041095,120]
[355601026,1741357863739,-500.0,0.00041095,120]
[355601027,1741357863749,-500.0,0.00041095,120]
[355601028,1741357863760,-1165.07,0.00041095,120]
[355601029,1741357863770,-500.0,0.00041095,120]
[355601030,1741357863780,-1041.2,0.00041095,120]
[355601031,1741357863792,-1106.08,0.00041095,120]
[355601032,1741357863801,-832.8,0.00041095,120]
[355601033,1741357863811,-560.30327782,0.00041095,120]
[355601034,1741357863830,-500.0,0.00041095,120]
[355601035,1741357863841,-548.57,0.00041095,120]
[355601036,1741357863850,-500.0,0.00041095,120]
[355601037,1741357863860,-663.33,0.00041095,120]
[355601038,1741357863870,-500.0,0.00041095,120]
[355601039,1741357863880,-500.0,0.00041095,120]
[355601040,1741357863890,-571.98,0.00041095,120]
[355601041,1741357863901,-508.75,0.00041095,120]
[355601042,1741357863911,-773.88,0.00041095,120]
[355601043,1741357863921,-1190.57,0.00041095,120]
[355601044,1741357863931,-773.31,0.00041095,120]
[355601045,1741357863942,-535.22,0.00041095,120]
[355601046,1741357863952,-1000.0,0.00041095,7]
[355601047,1741357863962,-674.96,0.00041095,120]
[355601048,1741357863972,-500.0,0.00041095,120]
[355601049,1741357863982,-500.0,0.00041095,120]
[355601050,1741357863991,-500.0,0.00041095,120]
[355601051,1741357864001,-500.0,0.00041095,120]
[355601052,1741357864011,-1092.95,0.00041095,120]
[355601053,1741357864021,-500.0,0.00041095,120]
[355601054,1741357864031,-8089.12,0.00041095,120]
[355601055,1741357864041,-500.0,0.00041095,30]
[355601056,1741357864051,-1368.46,0.00041095,120]
[355601057,1741357864060,-648.75499668,0.00041095,120]
[355601058,1741357864072,-1646.73,0.00041095,120]
[355601059,1741357864083,-1042.05,0.00041095,120]
[355601060,1741357864092,-896.61,0.00041095,120]
[355601061,1741357864102,-1423.74,0.00041095,120]
[355601062,1741357864111,-545.4,0.00041095,120]
[355601063,1741357864121,-1667.47,0.00041095,120]
[355601064,1741357864131,-855.28,0.00041095,120]
[355601065,1741357864142,-1876.6,0.00041095,120]
[355601066,1741357864152,-500.0,0.00041095,120]
[355601067,1741357864164,-500.0,0.00041095,120]
[355601068,1741357864174,-685.68,0.00041095,120]
[355601069,1741357864184,-1348.74,0.00041095,120]
[355601070,1741357864195,-1572.44,0.00041095,120]
[355601071,1741357864204,-500.0,0.00041095,120]
[355601072,1741357864214,-405.35,0.00041095,30]
[355601073,1741357864225,-500.0,0.00041095,120]
[355601074,1741357864235,-500.0,0.00041095,120]
[355601075,1741357864245,-500.0,0.00041095,120]
[355601076,1741357864256,-132607.36,0.00041095,7]
[355601077,1741357864265,-850.8,0.00041095,120]
[355601078,1741357864274,-500.0,0.00041095,120]
[355601079,1741357864285,-904.12,0.00041095,120]
[355601080,1741357864296,-1621.58,0.00041095,120]
[355601081,1741357864306,-1312.15,0.00041095,120]
[355601082,1741357864315,-2610.77,0.00041095,120]
[355601083,1741357864327,-716.55,0.00041095,120]
[355601084,1741357864337,-500.0,0.00041095,120]
[355601085,1741357864347,-500.0,0.00041095,120]
[355601086,1741357864357,-1292.51,0.00041095,120]
[355601087,1741357864368,-612.3,0.00041095,120]
[355601088,1741357864378,-500.0,0.00041095,120]
[355601089,1741357864388,-1382.9,0.00041095,120]
[355601090,1741357864398,-2004.36,0.00041095,15]
[355601091,1741357864408,-577.0,0.00041095,120]
[355601092,1741357864418,-2614.24,0.00041095,120]
[355601093,1741357864427,-6428.78,0.00041095,30]
[355601094,1741357864437,-722.58,0.00041095,120]
[355601095,1741357864446,-1032.7,0.00041095,120]
[355601096,1741357864456,-8893.18,0.00041095,120]
[355601097,1741357864466,-795.02,0.00041095,120]
[355601098,1741357864476,-665.5,0.00041095,120]
[355601099,1741357864485,-500.0,0.00041095,120]
[355601100,1741357864495,-1493.56,0.00041095,120]
[355601101,1741357864505,-4367.99,0.00041095,120]
[355601102,1741357864514,-749.31,0.00041095,120]
[355601103,1741357864523,-500.0,0.00041095,120]
[355601104,1741357864533,-2707.82,0.00041095,120]
[355601105,1741357864543,-643.96,0.00041095,120]
[355601106,1741357864553,-500.0,0.00041095,120]
[355601107,1741357864563,-500.0,0.00041095,120]
[355601108,1741357864574,-2470.25,0.00041095,120]
[355601109,1741357864584,-591.29,0.00041095,120]
[355601110,1741357864593,-5064.26,0.00041095,120]
[355601111,1741357864603,-500.0,0.00041095,120]
[355601112,1741357864613,-2702.56,0.00041095,120]
[355601113,1741357864622,-796.49,0.00041095,120]
[355601114,1741357864632,-748.95,0.00041095,120]
[355601115,1741357864641,-968.16,0.00041095,120]
[355601116,1741357864652,-1575.88,0.00041095,120]
[355601117,1741357864662,-1434.71,0.00041095,120]
[355601118,1741357864672,-1248.42,0.00041095,120]
[355601119,1741357864681,-1206.59,0.00041095,120]
[355601120,1741357864691,-713.9,0.00041095,120]
[355601121,1741357864700,-674.94,0.00041095,120]
[355601122,1741357864710,-1065.08,0.00041095,7]
[355601123,1741357864720,-673.48,0.00041095,120]
[355601124,1741357864730,-1075.1,0.00041095,120]
[355601125,1741357864740,-500.0,0.00041095,120]
[355601126,1741357864750,-765.28,0.00041095,120]
[355601127,1741357864759,-500.0,0.00041095,120]
[355601128,1741357864768,-500.0,0.00041095,120]
[355601129,1741357864778,-773.72,0.00041095,120]
[355601130,1741357864788,-1301.44,0.00041095,120]
[355601131,1741357864798,-3559.04,0.00041095,120]
[355601132,1741357864808,-3825.24,0.00041095,120]
[355601133,1741357864818,-2253.86,0.00041095,120]
[355601134,1741357864833,-500.0,0.00041095,120]
[355601135,1741357864843,-4575.66,0.00041095,120]
[355601136,1741357864852,-500.0,0.00041095,120]
[355601137,1741357864862,-639.23,0.00041095,120]
[355601138,1741357864872,-4376.22,0.00041095,120]
[355601139,1741357864881,-1801.35,0.00041095,120]
[355601140,1741357864890,-500.0,0.00041095,120]
[355601141,1741357864901,-500.0,0.00041095,120]
[355601142,1741357864911,-500.0,0.00041095,120]
[355601143,1741357864921,-546.0,0.00041095,120]
[355601144,1741357864930,-150.49591431,0.00041096,10]
[355601145,1741357864940,-500.0,0.00041096,5]
[355601146,1741357864949,-150.0,0.00041096,10]
[355601147,1741357864959,-500.0,0.00041097,2]
[355601148,1741357864969,-166.35,0.000411,120]
[355601149,1741357864982,-194.08146233,0.000411,120]
[355601150,1741357864999,-194.08,0.000411,120]
[355601151,1741357865014,-689.54022821,0.000411,120]
[355601152,1741357865028,-689.54022821,0.000411,120]
[355601153,1741357865041,-689.54022821,0.000411,120]
[355601154,1741357865056,-689.54022821,0.000411,120]
[355601155,1741357865075,-689.54022821,0.000411,120]
[355601156,1741357865091,-689.54022821,0.000411,120]
[355601157,1741357865105,-689.54022821,0.000411,120]
[355601158,1741357865120,-689.54022821,0.000411,120]
[355601159,1741357865135,-689.54022821,0.000411,120]
[355601160,1741357865151,-689.54022821,0.000411,120]
[355601161,1741357865165,-689.54022821,0.000411,120]
[355601162,1741357865179,-689.54022821,0.000411,120]
[355601163,1741357865193,-689.54022821,0.000411,120]
[355601164,1741357865207,-689.54022821,0.000411,120]
[355601165,1741357865224,-689.54022821,0.000411,120]
[355601166,1741357865236,-689.54022821,0.000411,120]
[355601167,1741357865249,-689.54022821,0.000411,120]
[355601168,1741357865264,-689.54022821,0.000411,120]
[355601169,1741357865279,-689.54022821,0.000411,120]
[355601170,1741357865294,-689.54,0.000411,120]
[355601171,1741357865309,-1608.92719916,0.000411,120]
[355601172,1741357865325,-1608.92719916,0.000411,120]
[355601173,1741357865341,-1608.92719916,0.000411,120]
[355601174,1741357865355,-1608.92719916,0.000411,120]
[355601175,1741357865367,-1608.92719916,0.000411,120]
[355601176,1741357865379,-1608.92719916,0.000411,120]
[355601177,1741357865393,-1608.92719916,0.000411,120]
[355601178,1741357865408,-1608.92719916,0.000411,120]
[355601179,1741357865422,-1608.92719916,0.000411,120]
[355601180,1741357865433,-1608.92719916,0.000411,120]
[355601181,1741357865445,-1608.92719916,0.000411,120]
[355601182,1741357865458,-1608.92719916,0.000411,120]
[355601183,1741357865471,-1608.92719916,0.000411,120]
[355601184,1741357865482,-1608.92719916,0.000411,120]
[355601185,1741357865493,-1608.92719916,0.000411,120]
[355601186,1741357865506,-1608.92719916,0.000411,120]
[355601187,1741357865517,-1608.92719916,0.000411,120]
[355601188,1741357865530,-1608.92719916,0.000411,120]
[355601189,1741357865542,-1608.92719916,0.000411,120]
[355601190,1741357865555,-1608.92,0.000411,120]
[355601191,1741357865566,-914.47073568,0.000412,2]
[355601192,1741357865582,-500.0,0.00041211,2]
[355601193,1741357865595,-550.0,0.00041364,5]
[355601194,1741357865607,-12685.0189793,0.00041369,5]
[355601195,1741357865619,-4027.16651799,0.00041369,5]
[355601196,1741357865632,-806.97,0.00041369,120]
[355601197,1741357865644,-500.0,0.00041369,120]
[355601198,1741357865656,-500.0,0.00041369,120]
[355601199,1741357865668,-500.0,0.00041369,120]
[355601200,1741357865680,-500.0,0.00041369,120]
[355601201,1741357865692,-361.16136221,0.00041369,120]
[355601202,1741357865705,-500.0,0.00041369,120]
[355601203,1741357865716,-500.0,0.00041369,3]
[355601204,1741357865728,-500.0,0.00041369,120]
[355601205,1741357865740,-500.0,0.00041369,120]
[355601206,1741357865752,-500.0,0.00041369,120]
[355601207,1741357865763,-705.57,0.00041369,120]
[355601208,1741357865775,-500.0,0.00041369,120]
[355601209,1741357865787,-2051.0,0.00041369,120]
[355601210,1741357865800,-500.0,0.00041369,120]
[355601211,1741357865812,-706.25,0.00041369,120]
[355601212,1741357865827,-500.0,0.00041369,120]
[355601213,1741357865838,-500.0,0.00041369,120]
[355601214,1741357865850,-580.88,0.00041369,120]
[355601215,1741357865861,-558.69,0.00041369,120]
[355601216,1741357865873,-500.0,0.00041369,120]
[355601217,1741357865885,-500.0,0.00041369,120]
[355601218,1741357865896,-500.0,0.00041369,120]
[355601219,1741357865907,-512.17,0.00041369,120]
[355601220,1741357865920,-500.0,0.00041369,120]
[355601221,1741357865931,-500.0,0.00041369,120]
[355601222,1741357865943,-500.0,0.00041369,120]
[355601223,1741357865955,-500.0,0.00041369,120]
[355601224,1741357865967,-500.0,0.00041369,120]
[355601225,1741357865979,-602.65,0.00041369,120]
[355601226,1741357865991,-712.98,0.00041369,120]
[355601227,1741357866003,-500.0,0.00041369,120]
[355601228,1741357866014,-500.0,0.00041369,120]
[355601229,1741357866026,-1165.07,0.00041369,120]
[355601230,1741357866038,-500.0,0.00041369,120]
[355601231,1741357866051,-1041.2,0.00041369,120]
[355601232,1741357866062,-1106.08,0.00041369,120]
[355601233,1741357866076,-832.8,0.00041369,120]
[355601234,1741357866087,-500.0,0.00041369,120]
[355601235,1741357866099,-548.57,0.00041369,120]
[355601236,1741357866111,-500.0,0.00041369,120]
[355601237,1741357866123,-663.33,0.00041369,120]
[355601238,1741357866136,-500.0,0.00041369,120]
[355601239,1741357866148,-500.0,0.00041369,120]
[355601240,1741357866164,-571.98,0.00041369,120]
[355601241,1741357866175,-508.75,0.00041369,120]
[355601242,1741357866187,-773.88,0.00041369,120]
[355601243,1741357866200,-1190.57,0.00041369,120]
[355601244,1741357866212,-773.31,0.00041369,120]
[355601245,1741357866225,-535.22,0.00041369,120]
[355601246,1741357866238,-1000.0,0.00041369,7]
[355601247,1741357866250,-674.96,0.00041369,120]
[355601248,1741357866262,-500.0,0.00041369,120]
[355601249,1741357866274,-500.0,0.00041369,120]
[355601250,1741357866286,-500.0,0.00041369,120]
[355601251,1741357866298,-500.0,0.00041369,120]
[355601252,1741357866309,-1092.95,0.00041369,120]
[355601253,1741357866328,-500.0,0.00041369,120]
[355601254,1741357866341,-8089.12,0.00041369,120]
[355601255,1741357866354,-500.0,0.00041369,30]
[355601256,1741357866368,-1368.46,0.00041369,120]
[355601257,1741357866381,-1646.73,0.00041369,120]
[355601258,1741357866394,-1042.05,0.00041369,120]
[355601259,1741357866406,-896.61,0.00041369,120]
[355601260,1741357866419,-1423.74,0.00041369,120]
[355601261,1741357866431,-545.4,0.00041369,120]
[355601262,1741357866444,-1667.47,0.00041369,120]
[355601263,1741357866456,-855.28,0.00041369,120]
[355601264,1741357866469,-1876.6,0.00041369,120]
[355601265,1741357866480,-500.0,0.00041369,120]
[355601266,1741357866493,-500.0,0.00041369,120]
[355601267,1741357866505,-685.68,0.00041369,120]
[355601268,1741357866516,-1348.74,0.00041369,120]
[355601269,1741357866527,-1572.44,0.00041369,120]
[355601270,1741357866538,-500.0,0.00041369,120]
[355601271,1741357866550,-500.0,0.00041369,120]
[355601272,1741357866561,-500.0,0.00041369,120]
[355601273,1741357866574,-500.0,0.00041369,120]
[355601274,1741357866586,-132607.36,0.00041369,7]
[355601275,1741357866598,-850.8,0.00041369,120]
[355601276,1741357866608,-500.0,0.00041369,120]
[355601277,1741357866620,-904.12,0.00041369,120]
[355601278,1741357866632,-1621.58,0.00041369,120]
[355601279,1741357866643,-1312.15,0.00041369,120]
[355601280,1741357866655,-2610.77,0.00041369,120]
[355601281,1741357866667,-716.55,0.00041369,120]
[355601282,1741357866679,-500.0,0.00041369,120]
[355601283,1741357866691,-500.0,0.00041369,120]
[355601284,1741357866702,-1292.51,0.00041369,120]
[355601285,1741357866714,-612.3,0.00041369,120]
[355601286,1741357866905,-500.0,0.00041369,120]
[355601287,1741357866938,-1382.9,0.00041369,120]
[355601288,1741357866951,-2004.36,0.00041369,15]
[355601289,1741357866961,-577.0,0.00041369,120]
[355601290,1741357866971,-6428.78,0.00041369,30]
[355601291,1741357866981,-722.58,0.00041369,120]
[355601292,1741357866991,-1032.7,0.00041369,120]
[355601293,1741357867001,-8893.18,0.00041369,120]
[355601294,1741357867011,-795.02,0.00041369,120]
[355601295,1741357867020,-665.5,0.00041369,120]
[355601296,1741357867030,-555.24066025,0.00041369,120]
[355601297,1741357867038,-1493.56,0.00041369,120]
[355601298,1741357867048,-4367.99,0.00041369,120]
[355601299,1741357867057,-749.31,0.00041369,120]
[355601300,1741357867067,-500.0,0.00041369,120]
[355601301,1741357867082,-2707.82,0.00041369,120]
[355601302,1741357867091,-643.96,0.00041369,120]
[355601303,1741357867100,-500.0,0.00041369,120]
[355601304,1741357867110,-500.0,0.00041369,120]
[355601305,1741357867120,-2470.25,0.00041369,120]
[355601306,1741357867131,-591.29,0.00041369,120]
[355601307,1741357867145,-5064.26,0.00041369,120]
[355601308,1741357867155,-500.0,0.00041369,120]
[355601309,1741357867166,-2702.56,0.00041369,120]
[355601310,1741357867178,-796.49,0.00041369,120]
[355601311,1741357867188,-748.95,0.00041369,120]
[355601312,1741357867199,-968.16,0.00041369,120]
[355601313,1741357867210,-1575.88,0.00041369,120]
[355601314,1741357867223,-1434.71,0.00041369,120]
[355601315,1741357867234,-1248.42,0.00041369,120]
[355601316,1741357867244,-1206.59,0.00041369,120]
[355601317,1741357867254,-713.9,0.00041369,120]
[355601318,1741357867264,-674.94,0.00041369,120]
[355601319,1741357867274,-1065.08,0.00041369,7]
[355601320,1741357867284,-673.48,0.00041369,120]
[355601321,1741357867294,-1075.1,0.00041369,120]
[355601322,1741357867304,-500.0,0.00041369,120]
[355601323,1741357867314,-765.28,0.00041369,120]
[355601324,1741357867327,-500.0,0.00041369,120]
[355601325,1741357867338,-500.0,0.00041369,120]
[355601326,1741357867348,-773.72,0.00041369,120]
[355601327,1741357867359,-1301.44,0.00041369,120]
[355601328,1741357867369,-3559.04,0.00041369,120]
[355601329,1741357867380,-3825.24,0.00041369,120]
[355601330,1741357867390,-2253.86,0.00041369,120]
[355601331,1741357867399,-500.0,0.00041369,120]
[355601332,1741357867408,-4575.66,0.00041369,120]
[355601333,1741357867418,-500.0,0.00041369,120]
[355601334,1741357867428,-639.23,0.00041369,120]
[355601335,1741357867438,-4376.22,0.00041369,120]
[355601336,1741357867447,-1801.35,0.00041369,120]
[355601337,1741357867458,-500.0,0.00041369,120]
[355601338,1741357867468,-500.0,0.00041369,120]
[355601339,1741357867477,-500.0,0.00041369,120]
[355601340,1741357867487,-546.0,0.00041369,120]
[355601341,1741357867497,-319.31155126,0.0004137,10]
[355601342,1741357867507,-200.0,0.000414,120]
[355601343,1741357867517,-600.0,0.00041415,30]
[355601344,1741357867527,-500.0,0.0004149,30]
[355601345,1741357867538,-806.97,0.00041643,120]
[355601346,1741357867547,-500.0,0.00041643,120]
[355601347,1741357867559,-452.19321159,0.00041643,120]
[355601348,1741357867569,-620.79092761,0.00041643,120]
[355601349,1741357867582,-500.0,0.00041643,120]
[355601350,1741357867591,-500.0,0.00041643,120]
[355601351,1741357867601,-500.0,0.00041643,3]
[355601352,1741357867611,-500.0,0.00041643,120]
[355601353,1741357867621,-500.0,0.00041643,120]
[355601354,1741357867631,-500.0,0.00041643,120]
[355601355,1741357867640,-705.57,0.00041643,120]
[355601356,1741357867650,-500.0,0.00041643,120]
[355601357,1741357867659,-2051.0,0.00041643,120]
[355601358,1741357867668,-500.0,0.00041643,120]
[355601359,1741357867678,-706.25,0.00041643,120]
[355601360,1741357867687,-500.0,0.00041643,120]
[355601361,1741357867696,-500.0,0.00041643,120]
[355601362,1741357867706,-580.88,0.00041643,120]
[355601363,1741357867715,-558.69,0.00041643,120]
[355601364,1741357867725,-500.0,0.00041643,120]
[355601365,1741357867736,-500.0,0.00041643,120]
[355601366,1741357867746,-500.0,0.00041643,120]